[Event "SPICE Cup 2014"]
[Site "St. Louis"]
[Date "2014.10.26"]
[Round "9"]
[White "Bora, Safal"]
[Black "Corrales Jimenez, Fidel"]
[Result "0-1"]
[ECO "A37"]
[WhiteElo "2328"]
[BlackElo "2532"]
[PlyCount "124"]
[EventDate "2014.??.??"]
[EventCountry "USA"]
[TimeControl "5400+30"]
[WhiteClock "0:11:23"]
[BlackClock "0:47:35"]

1. Nf3 {[%emt 0:00:00]} g6 {[%emt 0:00:00]} 2. c4 {[%emt 0:00:00]} Bg7 {[%emt
0:00:01]} 3. g3 {[%emt 0:00:00]} c5 {[%emt 0:00:40]} 4. Bg2 {[%emt 0:00:02]}
Nc6 {[%emt 0:00:06]} 5. Nc3 {[%emt 0:00:04]} d6 {[%emt 0:00:12]} 6. O-O {[%emt
0:01:05]} Bf5 {[%emt 0:00:06]} 7. d3 {[%emt 0:00:52]} Qd7 {[%emt 0:00:06]} 8.
e3 {[%emt 0:00:25]} Nf6 {[%emt 0:00:35]} 9. d4 {[%emt 0:00:05]} Ne4 {[%emt 0:
01:42]} 10. Ne2 {[%emt 0:00:16]} g5 {[%emt 0:05:05]} 11. Nd2 {[%emt 0:01:06]}
Nxd2 {[%emt 0:01:37]} 12. Qxd2 {[%emt 0:00:31]} Bh3 {[%emt 0:00:11]} 13. b3 {
[%emt 0:19:36]} h5 {[%emt 0:02:29]} 14. f3 {[%emt 0:04:19]} Bxg2 {[%emt 0:01:
42]} 15. Kxg2 {[%emt 0:00:14]} g4 {[%emt 0:00:13]} 16. Bb2 {[%emt 0:02:33]} h4
{[%emt 0:01:01]} 17. f4 {[%emt 0:05:28]} Qf5 {[%emt 0:04:14]} 18. Kg1 {[%emt 0:
03:02]} O-O-O {[%emt 0:01:26]} 19. d5 {[%emt 0:02:23]} Bxb2 {[%emt 0:00:19]}
20. Qxb2 {[%emt 0:00:05]} Nb4 {[%emt 0:00:12]} 21. gxh4 {[%emt 0:09:23]} Qd3 {
[%emt 0:10:59]} 22. Ng3 {[%emt 0:01:46]} Nc2 {[%emt 0:17:40]} 23. Rac1 {[%emt
0:14:39]} Qxe3+ {[%emt 0:01:14]} 24. Kg2 {[%emt 0:01:34]} Qd2+ {[%emt 0:00:22]}
25. Kg1 {[%emt 0:00:17]} Qd4+ {[%emt 0:00:08]} 26. Qxd4 {[%emt 0:00:05]} Nxd4 {
[%emt 0:00:04]} 27. h5 {[%emt 0:00:19]} e6 {[%emt 0:00:20]} 28. dxe6 {[%emt 0:
07:53]} fxe6 {[%emt 0:00:02]} 29. Kg2 {[%emt 0:01:49]} Rdf8 {[%emt 0:01:03]}
30. Rce1 {[%emt 0:00:54]} Kd7 {[%emt 0:00:03]} 31. Re4 {[%emt 0:01:38]} Nf5 {
[%emt 0:01:07]} 32. Rfe1 {[%emt 0:00:41]} Nh4+ {[%emt 0:01:18]} 33. Kh1 {[%emt
0:00:50]} Rh6 {[%emt 0:00:16]} 34. f5 {[%emt 0:01:47]} exf5 {[%emt 0:06:23]}
35. Re7+ {[%emt 0:00:06]} Kc6 {[%emt 0:00:11]} 36. Rg7 {[%emt 0:00:27]} f4 {
[%emt 0:00:18]} 37. Ne4 {[%emt 0:06:28]} Re8 {[%emt 0:02:50]} 38. Rxg4 {[%emt
0:00:35]} Nf3 {[%emt 0:00:10]} 39. Rf1 {[%emt 0:01:20]} Nxh2 {[%emt 0:00:19]}
40. Kxh2 {[%emt 0:00:23]} Rxh5+ {[%emt 0:00:06]} 41. Kg2 {[%emt 0:00:58]} Rxe4
{[%emt 0:00:10]} 42. Rgxf4 {[%emt 0:01:14]} Rxf4 {[%emt 0:00:59]} 43. Rxf4 {
[%emt 0:00:02]} Re5 {[%emt 0:00:13]} 44. Kf2 {[%emt 0:00:09]} a6 {[%emt 0:00:
04]} 45. Rf8 {[%emt 0:01:47]} b5 {[%emt 0:00:15]} 46. Rc8+ {[%emt 0:00:57]} Kb6
{[%emt 0:00:06]} 47. cxb5 {[%emt 0:01:01]} axb5 {[%emt 0:00:02]} 48. Rb8+ {
[%emt 0:00:27]} Kc6 {[%emt 0:00:07]} 49. Rc8+ {[%emt 0:00:57]} Kb7 {[%emt 0:00:
08]} 50. Rh8 {[%emt 0:00:28]} b4 {[%emt 0:00:04]} 51. Rh6 {[%emt 0:00:23]} Kc6
{[%emt 0:00:05]} 52. Kf3 {[%emt 0:00:14]} Kd7 {[%emt 0:01:22]} 53. Kf2 {[%emt
0:00:11]} Re6 {[%emt 0:00:08]} 54. Rh7+ {[%emt 0:00:37]} Kc6 {[%emt 0:00:06]}
55. Ra7 {[%emt 0:00:27]} Kd5 {[%emt 0:00:14]} 56. a3 {[%emt 0:00:33]} Kd4 {
[%emt 0:01:59]} 57. axb4 {[%emt 0:00:09]} cxb4 {[%emt 0:00:04]} 58. Rc7 {[%emt
0:00:18]} d5 {[%emt 0:00:03]} 59. Rc1 {[%emt 0:01:50]} Re3 {[%emt 0:00:12]} 60.
Rb1 {[%emt 0:01:15]} Rh3 {[%emt 0:00:05]} 61. Rd1+ {[%emt 0:00:15]} Rd3 {[%emt
0:00:05]} 62. Rb1 {[%emt 0:00:25]} Kc3 {[%emt 0:00:04]} 0-1

[Event "SPICE Cup 2014"]
[Site "St. Louis"]
[Date "2014.10.26"]
[Round "9"]
[White "Le, Quang Liem"]
[Black "Leon Hoyos, Manuel"]
[Result "1-0"]
[ECO "A43"]
[WhiteElo "2706"]
[BlackElo "2512"]
[PlyCount "91"]
[EventDate "2014.??.??"]
[EventCountry "USA"]
[TimeControl "5400+30"]
[WhiteClock "0:06:41"]
[BlackClock "0:01:40"]

1. d4 {[%emt 0:00:00]} g6 {[%emt 0:00:00]} 2. c4 {[%emt 0:00:00]} Bg7 {[%emt 0:
00:00]} 3. Nc3 {[%emt 0:00:12]} c5 {[%emt 0:00:00]} 4. d5 {[%emt 0:00:19]}
Bxc3+ {[%emt 0:00:00]} 5. bxc3 {[%emt 0:00:08]} f5 {[%emt 0:00:00]} 6. h4 {
[%emt 0:04:45]} Nf6 {[%emt 0:06:57]} 7. h5 {[%emt 0:00:58]} Rg8 {[%emt 0:00:01]
} 8. hxg6 {[%emt 0:04:14]} hxg6 {[%emt 0:01:51]} 9. Nf3 {[%emt 0:04:21]} d6 {
[%emt 0:01:58]} 10. Ng5 {[%emt 0:07:00]} Qa5 {[%emt 0:02:39]} 11. Qc2 {[%emt 0:
01:46]} Nbd7 {[%emt 0:00:14]} 12. Bf4 {[%emt 0:00:41]} Nb6 {[%emt 0:11:16]} 13.
e3 {[%emt 0:00:19]} Bd7 {[%emt 0:00:02]} 14. f3 {[%emt 0:08:26]} O-O-O {[%emt
0:00:18]} 15. Kf2 {[%emt 0:00:20]} Rh8 {[%emt 0:11:34]} 16. Bd3 {[%emt 0:00:38]
} Ba4 {[%emt 0:07:41]} 17. Qd2 {[%emt 0:01:03]} Nbd7 {[%emt 0:04:24]} 18. e4 {
[%emt 0:08:10]} Nh5 {[%emt 0:09:33]} 19. Bh2 {[%emt 0:06:03]} f4 {[%emt 0:01:
07]} 20. Ne6 {[%emt 0:05:54]} g5 {[%emt 0:01:03]} 21. Nxg5 {[%emt 0:03:34]} Ne5
{[%emt 0:00:59]} 22. Ne6 {[%emt 0:02:27]} Rdf8 {[%emt 0:01:47]} 23. Be2 {[%emt
0:02:21]} Bd7 {[%emt 0:11:04]} 24. Nxf4 {[%emt 0:03:27]} Nf6 {[%emt 0:00:05]}
25. Bg3 {[%emt 0:04:37]} Rhg8 {[%emt 0:01:03]} 26. Bh4 {[%emt 0:00:35]} Qd8 {
[%emt 0:16:23]} 27. g3 {[%emt 0:03:05]} Rf7 {[%emt 0:02:37]} 28. Raf1 {[%emt 0:
01:22]} Ne8 {[%emt 0:01:56]} 29. Kg1 {[%emt 0:07:11]} Ng7 {[%emt 0:00:34]} 30.
Ng2 {[%emt 0:00:45]} Nh5 {[%emt 0:01:39]} 31. g4 {[%emt 0:00:38]} Rfg7 {[%emt
0:01:35]} 32. Rh2 {[%emt 0:02:54]} Bxg4 {[%emt 0:01:44]} 33. fxg4 {[%emt 0:00:
07]} Nxg4 {[%emt 0:00:01]} 34. Bxg4+ {[%emt 0:02:06]} Rxg4 {[%emt 0:00:01]} 35.
Qh6 {[%emt 0:00:56]} Ng7 {[%emt 0:01:47]} 36. Rf4 {[%emt 0:02:49]} Qd7 {[%emt
0:03:25]} 37. Kf2 {[%emt 0:05:21]} Kb8 {[%emt 0:00:31]} 38. Ne3 {[%emt 0:01:28]
} Rxf4+ {[%emt 0:00:16]} 39. Qxf4 {[%emt 0:00:07]} e5 {[%emt 0:00:10]} 40. Qg4
{[%emt 0:00:55]} Qf7+ {[%emt 0:00:46]} 41. Ke1 {[%emt 0:01:43]} Nh5 {[%emt 0:
00:21]} 42. Qf5 {[%emt 0:00:09]} Qe8 {[%emt 0:00:24]} 43. Qe6 {[%emt 0:01:03]}
Qf8 {[%emt 0:00:08]} 44. Be7 {[%emt 0:00:18]} Qg7 {[%emt 0:00:55]} 45. Bxd6+ {
[%emt 0:00:39]} Ka8 {[%emt 0:00:01]} 46. Rg2 {[%emt 0:00:25]} 1-0

[Event "SPICE Cup 2014"]
[Site "St. Louis"]
[Date "2014.10.26"]
[Round "9"]
[White "Preotu, Razvan"]
[Black "Sevian, Samuel"]
[Result "1/2-1/2"]
[ECO "B52"]
[WhiteElo "2405"]
[BlackElo "2484"]
[PlyCount "74"]
[EventDate "2014.??.??"]
[EventCountry "USA"]
[TimeControl "5400+30"]
[WhiteClock "0:15:36"]
[BlackClock "0:09:08"]

1. e4 {[%emt 0:00:00]} c5 {[%emt 0:07:11]} 2. Nf3 {[%emt 0:00:00]} d6 {[%emt 0:
00:33]} 3. Bb5+ {[%emt 0:03:39]} Bd7 {[%emt 0:00:59]} 4. Bxd7+ {[%emt 0:00:11]}
Qxd7 {[%emt 0:00:05]} 5. O-O {[%emt 0:00:17]} Nf6 {[%emt 0:00:05]} 6. Re1 {
[%emt 0:00:32]} Nc6 {[%emt 0:00:29]} 7. c3 {[%emt 0:03:50]} e6 {[%emt 0:00:10]}
8. d4 {[%emt 0:00:27]} cxd4 {[%emt 0:00:05]} 9. cxd4 {[%emt 0:00:09]} d5 {
[%emt 0:00:03]} 10. e5 {[%emt 0:00:54]} Ne4 {[%emt 0:00:08]} 11. Nbd2 {[%emt 0:
01:14]} Nxd2 {[%emt 0:00:11]} 12. Bxd2 {[%emt 0:00:07]} Be7 {[%emt 0:00:05]}
13. Bg5 {[%emt 0:02:02]} O-O {[%emt 0:08:26]} 14. Bxe7 {[%emt 0:05:52]} Nxe7 {
[%emt 0:00:14]} 15. Qb3 {[%emt 0:02:07]} Rfc8 {[%emt 0:01:25]} 16. Rec1 {[%emt
0:00:10]} Rc7 {[%emt 0:05:46]} 17. Qa3 {[%emt 0:06:41]} Rac8 {[%emt 0:01:17]}
18. b3 {[%emt 0:01:54]} b6 {[%emt 0:00:27]} 19. Qb2 {[%emt 0:03:00]} Rc6 {
[%emt 0:15:45]} 20. Kf1 {[%emt 0:13:34]} Qc7 {[%emt 0:08:15]} 21. Rxc6 {[%emt
0:00:09]} Qxc6 {[%emt 0:00:06]} 22. Qd2 {[%emt 0:15:03]} h6 {[%emt 0:03:44]}
23. Rd1 {[%emt 0:05:37]} a5 {[%emt 0:09:34]} 24. h4 {[%emt 0:06:26]} Qc2 {
[%emt 0:04:31]} 25. Qxc2 {[%emt 0:02:02]} Rxc2 {[%emt 0:00:06]} 26. Rd2 {[%emt
0:00:22]} Rc1+ {[%emt 0:00:30]} 27. Ne1 {[%emt 0:00:51]} h5 {[%emt 0:00:15]}
28. g3 {[%emt 0:02:52]} f6 {[%emt 0:02:20]} 29. exf6 {[%emt 0:00:34]} gxf6 {
[%emt 0:00:08]} 30. Ke2 {[%emt 0:02:06]} Nf5 {[%emt 0:06:44]} 31. Ng2 {[%emt 0:
00:09]} Nd6 {[%emt 0:00:51]} 32. Rd1 {[%emt 0:02:54]} Rc6 {[%emt 0:07:24]} 33.
Rd2 {[%emt 0:03:47]} Ne4 {[%emt 0:05:35]} 34. Rb2 {[%emt 0:00:01]} Kf7 {[%emt
0:01:09]} 35. Nf4 {[%emt 0:00:36]} Rc1 {[%emt 0:02:32]} 36. Nd3 {[%emt 0:02:29]
} Rc6 {[%emt 0:01:44]} 37. Nf4 {[%emt 0:00:16]} Rc1 1/2-1/2

[Event "SPICE Cup 2014"]
[Site "St. Louis"]
[Date "2014.10.26"]
[Round "9"]
[White "Robson, Ray"]
[Black "Nyzhnyk, Illya"]
[Result "1/2-1/2"]
[ECO "C10"]
[WhiteElo "2628"]
[BlackElo "2613"]
[PlyCount "43"]
[EventDate "2014.??.??"]
[EventCountry "USA"]
[TimeControl "5400+30"]
[WhiteClock "0:21:21"]
[BlackClock "0:57:08"]

1. e4 {[%emt 0:00:00]} e6 {[%emt 0:00:00]} 2. d4 {[%emt 0:00:00]} d5 {[%emt 0:
00:00]} 3. Nc3 {[%emt 0:00:01]} dxe4 {[%emt 0:00:00]} 4. Nxe4 {[%emt 0:00:08]}
Nd7 {[%emt 0:00:00]} 5. Nf3 {[%emt 0:00:50]} Ngf6 {[%emt 0:00:03]} 6. Nxf6+ {
[%emt 0:00:49]} Nxf6 {[%emt 0:00:05]} 7. g3 {[%emt 0:00:24]} b6 {[%emt 0:00:59]
} 8. Bb5+ {[%emt 0:00:08]} Bd7 {[%emt 0:00:04]} 9. a4 {[%emt 0:00:07]} a6 {
[%emt 0:01:12]} 10. Be2 {[%emt 0:00:32]} Bc6 {[%emt 0:03:15]} 11. O-O {[%emt 0:
00:55]} Bd6 {[%emt 0:01:01]} 12. Ne5 {[%emt 0:00:49]} Bd5 {[%emt 0:12:32]} 13.
Bf3 {[%emt 0:20:01]} Bxe5 {[%emt 0:05:49]} 14. dxe5 {[%emt 0:00:16]} Bxf3 {
[%emt 0:00:04]} 15. Qxf3 {[%emt 0:00:09]} Qd5 {[%emt 0:00:02]} 16. Qc3 {[%emt
0:11:18]} Nd7 {[%emt 0:00:11]} 17. Bf4 {[%emt 0:01:24]} Qc5 {[%emt 0:00:24]}
18. Qf3 {[%emt 0:20:13]} Rd8 {[%emt 0:00:05]} 19. Rad1 {[%emt 0:03:21]} O-O {
[%emt 0:01:04]} 20. Qe4 {[%emt 0:01:12]} Nb8 {[%emt 0:10:44]} 21. Bg5 {[%emt 0:
16:32]} Rd5 {[%emt 0:05:48]} 22. Be3 1/2-1/2

[Event "SPICE Cup 2014"]
[Site "St. Louis"]
[Date "2014.10.26"]
[Round "9"]
[White "Troff, Kayden W"]
[Black "Chandra, Akshat"]
[Result "1/2-1/2"]
[ECO "D05"]
[WhiteElo "2532"]
[BlackElo "2488"]
[PlyCount "66"]
[EventDate "2014.??.??"]
[EventCountry "USA"]
[TimeControl "5400+30"]
[WhiteClock "0:18:49"]
[BlackClock "0:09:29"]

1. d4 {[%emt 0:00:00]} Nf6 {[%emt 0:00:00]} 2. Nf3 {[%emt 0:00:15]} d5 {[%emt
0:01:20]} 3. e3 {[%emt 0:02:53]} e6 {[%emt 0:09:33]} 4. Bd3 {[%emt 0:00:29]} c5
{[%emt 0:00:20]} 5. b3 {[%emt 0:00:10]} Nc6 {[%emt 0:02:34]} 6. O-O {[%emt 0:
00:30]} Be7 {[%emt 0:02:15]} 7. Bb2 {[%emt 0:00:09]} O-O {[%emt 0:01:57]} 8.
dxc5 {[%emt 0:00:43]} Bxc5 {[%emt 0:01:56]} 9. a3 {[%emt 0:00:06]} Qe7 {[%emt
0:11:06]} 10. b4 {[%emt 0:00:21]} Bd6 {[%emt 0:01:48]} 11. Nc3 {[%emt 0:20:40]}
Rd8 {[%emt 0:15:16]} 12. Qe2 {[%emt 0:07:17]} Ne5 {[%emt 0:01:50]} 13. Nb5 {
[%emt 0:11:52]} Nxd3 {[%emt 0:02:07]} 14. cxd3 {[%emt 0:00:35]} Bb8 {[%emt 0:
00:57]} 15. d4 {[%emt 0:01:49]} Bd7 {[%emt 0:03:41]} 16. Ne5 {[%emt 0:09:16]}
Bxb5 {[%emt 0:08:16]} 17. Qxb5 {[%emt 0:00:09]} Bd6 {[%emt 0:00:15]} 18. f3 {
[%emt 0:04:26]} Rdc8 {[%emt 0:06:55]} 19. Rfc1 {[%emt 0:01:39]} h6 {[%emt 0:03:
05]} 20. Kh1 {[%emt 0:02:56]} a6 {[%emt 0:07:31]} 21. Qf1 {[%emt 0:06:32]} Bxe5
{[%emt 0:05:18]} 22. dxe5 {[%emt 0:00:10]} Nd7 {[%emt 0:00:08]} 23. Bd4 {[%emt
0:02:20]} Rxc1 {[%emt 0:03:26]} 24. Rxc1 {[%emt 0:02:46]} Qd8 {[%emt 0:00:01]}
25. Rc3 {[%emt 0:02:34]} Rc8 {[%emt 0:00:38]} 26. Qc1 {[%emt 0:00:14]} Rxc3 {
[%emt 0:00:06]} 27. Qxc3 {[%emt 0:00:08]} Nb6 {[%emt 0:01:46]} 28. Bxb6 {[%emt
0:00:48]} Qxb6 {[%emt 0:00:02]} 29. Kg1 {[%emt 0:00:36]} Qb5 {[%emt 0:01:18]}
30. Qc8+ {[%emt 0:04:46]} Kh7 {[%emt 0:00:01]} 31. Qc2+ {[%emt 0:00:11]} Kg8 {
[%emt 0:00:05]} 32. Qc8+ {[%emt 0:00:14]} Kh7 {[%emt 0:00:03]} 33. Qc2+ {[%emt
0:00:07]} Kg8 {[%emt 0:01:27]} 1/2-1/2